[Event "Titled Tuesday Blitz March 28 Early 2023"]
[White "Hardaway, Brewington"]
[Black "Novikov, Evgenij"]
[WhiteFideId "30941849"]
[BlackFideId "4125380"]
[WhiteElo "2159"]
[BlackElo "2242"]
[Result "1-0"]
[Round "10"]
[TimeControl "180+2"]
[Date "2023.03.28"]
[WhiteClock "0:01:40"]
[BlackClock "0:00:04"]

1. d4 {[%clk 0:03:00]}  d6 {[%clk 0:02:53]} 2. e4 {[%clk 0:03:00]}  c6 {[%clk 0:02:51]} 3. Nc3 {[%clk 0:02:59]}  Qc7 {[%clk 0:02:51]} 4. Nf3 {[%clk 0:02:58]}  Bg4 {[%clk 0:02:50]} 5. h3 {[%clk 0:02:57]}  Bh5 {[%clk 0:02:44]} 6. Be3 {[%clk 0:02:54]}  Nd7 {[%clk 0:02:42]} 7. g4 {[%clk 0:02:53]}  Bg6 {[%clk 0:02:42]} 8. Nh4 {[%clk 0:02:50]}  e5 {[%clk 0:02:30]} 9. dxe5 {[%clk 0:02:43]}  dxe5 {[%clk 0:02:28]} 10. Bg2 {[%clk 0:02:40]}  Bc5 {[%clk 0:02:15]} 11. Qd2 {[%clk 0:02:33]}  Ne7 {[%clk 0:01:52]} 12. O-O-O {[%clk 0:02:32]}  O-O-O {[%clk 0:01:52]} 13. Nf5 {[%clk 0:02:27]}  Bxf5 {[%clk 0:01:41]} 14. exf5 {[%clk 0:02:27]}  f6 {[%clk 0:01:33]} 15. Ne4 {[%clk 0:02:24]}  Bxe3 {[%clk 0:01:29]} 16. Qxe3 {[%clk 0:02:24]}  Kb8 {[%clk 0:01:10]} 17. c4 {[%clk 0:02:22]}  Nb6 {[%clk 0:01:04]} 18. b3 {[%clk 0:02:19]}  h5 {[%clk 0:01:02]} 19. Nc5 {[%clk 0:02:09]}  Qc8 {[%clk 0:00:59]} 20. Ne6 {[%clk 0:02:08]}  Rxd1+ {[%clk 0:00:59]} 21. Rxd1 {[%clk 0:02:09]}  hxg4 {[%clk 0:00:59]} 22. hxg4 {[%clk 0:02:09]}  g6 {[%clk 0:00:58]} 23. Qc5 {[%clk 0:02:07]}  Nxf5 {[%clk 0:00:14]} 24. gxf5 {[%clk 0:02:06]}  gxf5 {[%clk 0:00:13]} 25. Qd6+ {[%clk 0:02:06]}  Ka8 {[%clk 0:00:13]} 26. Nc7+ {[%clk 0:01:59]}  Kb8 {[%clk 0:00:13]} 27. Nd5+ {[%clk 0:02:00]}  Ka8 {[%clk 0:00:12]} 28. Nxf6 {[%clk 0:01:59]}  e4 {[%clk 0:00:08]} 29. c5 {[%clk 0:01:50]}  Nd5 {[%clk 0:00:08]} 30. Nxd5 {[%clk 0:01:50]}  cxd5 {[%clk 0:00:09]} 31. Qxd5 {[%clk 0:01:50]}  Rf8 {[%clk 0:00:07]} 32. Bh3 {[%clk 0:01:46]}  a6 {[%clk 0:00:06]} 33. Kb1 {[%clk 0:01:43]}  Ka7 {[%clk 0:00:06]} 34. Bf1 {[%clk 0:01:41]}  Qc7 {[%clk 0:00:05]} 35. Qd6 {[%clk 0:01:37]}  Qg7 {[%clk 0:00:04]} 36. Qb6+ {[%clk 0:01:36]}  Ka8 {[%clk 0:00:03]} 37. c6 {[%clk 0:01:37]}  Rb8 {[%clk 0:00:02]} 38. cxb7+ {[%clk 0:01:37]}  Qxb7 {[%clk 0:00:03]} 39. Qxa6+ {[%clk 0:01:36]}  Qxa6 {[%clk 0:00:02]} 40. Bxa6 {[%clk 0:01:37]}  Re8 {[%clk 0:00:03]} 41. Bb5 {[%clk 0:01:36]}  Re5 {[%clk 0:00:03]} 42. Rd5 {[%clk 0:01:36]}  Rxd5 {[%clk 0:00:02]} 43. Bc6+ {[%clk 0:01:37]}  Kb8 {[%clk 0:00:03]} 44. Bxd5 {[%clk 0:01:37]}  Kc7 {[%clk 0:00:04]} 45. Kc2 {[%clk 0:01:38]}  Kd6 {[%clk 0:00:04]} 46. Bxe4 {[%clk 0:01:38]}  fxe4 {[%clk 0:00:04]} 47. Kd2 {[%clk 0:01:39]}  Ke5 {[%clk 0:00:04]} 48. Ke3 {[%clk 0:01:40]} 1-0


[Site "https://www.chess.com"]

[Event "Titled Tuesday Blitz March 28 Early 2023"]
[White "Miszler, Levente"]
[Black "Khumalo, Keith"]
[WhiteFideId "763276"]
[BlackFideId "14319470"]
[WhiteElo "2176"]
[BlackElo "2056"]
[Result "0-1"]
[Round "10"]
[TimeControl "180+2"]
[Date "2023.03.28"]
[WhiteClock "0:00:39"]
[BlackClock "0:01:18"]

1. Nf3 {[%clk 0:03:00]}  c5 {[%clk 0:02:56]} 2. c4 {[%clk 0:03:01]}  Nc6 {[%clk 0:02:55]} 3. Nc3 {[%clk 0:03:00]}  g6 {[%clk 0:02:56]} 4. g3 {[%clk 0:03:00]}  Bg7 {[%clk 0:02:56]} 5. Bg2 {[%clk 0:03:01]}  d6 {[%clk 0:02:57]} 6. O-O {[%clk 0:03:00]}  e6 {[%clk 0:02:58]} 7. a3 {[%clk 0:02:56]}  Nge7 {[%clk 0:02:58]} 8. Rb1 {[%clk 0:02:56]}  O-O {[%clk 0:02:59]} 9. b4 {[%clk 0:02:54]}  Rb8 {[%clk 0:03:00]} 10. b5 {[%clk 0:02:55]}  Na5 {[%clk 0:03:01]} 11. Qa4 {[%clk 0:02:51]}  b6 {[%clk 0:02:59]} 12. Bb2 {[%clk 0:02:50]}  Bb7 {[%clk 0:02:59]} 13. d3 {[%clk 0:02:50]}  d5 {[%clk 0:02:59]} 14. cxd5 {[%clk 0:02:46]}  exd5 {[%clk 0:03:00]} 15. Rfd1 {[%clk 0:02:42]}  d4 {[%clk 0:03:00]} 16. Ne4 {[%clk 0:02:42]}  Bd5 {[%clk 0:03:01]} 17. Ned2 {[%clk 0:02:39]}  Qd7 {[%clk 0:02:56]} 18. e3 {[%clk 0:02:38]}  dxe3 {[%clk 0:02:54]} 19. fxe3 {[%clk 0:02:39]}  Bxb2 {[%clk 0:02:50]} 20. Rxb2 {[%clk 0:02:40]}  Ba8 {[%clk 0:02:47]} 21. Qh4 {[%clk 0:02:16]}  Nf5 {[%clk 0:02:43]} 22. Qf6 {[%clk 0:02:09]}  Qxd3 {[%clk 0:02:38]} 23. Re1 {[%clk 0:02:04]}  Qd6 {[%clk 0:02:25]} 24. Qg5 {[%clk 0:01:59]}  h6 {[%clk 0:02:19]} 25. Qg4 {[%clk 0:01:56]}  Rfe8 {[%clk 0:02:16]} 26. e4 {[%clk 0:01:56]}  Nd4 {[%clk 0:02:13]} 27. e5 {[%clk 0:01:50]}  Qd8 {[%clk 0:02:10]} 28. Ne4 {[%clk 0:01:29]}  Nxf3+ {[%clk 0:02:05]} 29. Bxf3 {[%clk 0:01:28]}  Qd4+ {[%clk 0:02:02]} 30. Rf2 {[%clk 0:01:27]}  Qxe5 {[%clk 0:01:54]} 31. Rfe2 {[%clk 0:01:23]}  Qd4+ {[%clk 0:01:54]} 32. Kg2 {[%clk 0:01:19]}  Kg7 {[%clk 0:01:51]} 33. Qf4 {[%clk 0:01:08]}  Nc4 {[%clk 0:01:39]} 34. Qc7 {[%clk 0:01:02]}  Ne5 {[%clk 0:01:31]} 35. Qxa7 {[%clk 0:00:44]}  Nxf3 {[%clk 0:01:31]} 36. Kxf3 {[%clk 0:00:43]}  Rxe4 {[%clk 0:01:25]} 37. Rxe4 {[%clk 0:00:44]}  Qd3+ {[%clk 0:01:22]} 38. Re3 {[%clk 0:00:41]}  Bxe4+ {[%clk 0:01:21]} 39. Kf4 {[%clk 0:00:41]}  Qf1+ {[%clk 0:01:18]} 40. Kxe4 {[%clk 0:00:39]}  Qf5# {[%clk 0:01:18]} 0-1


[Site "https://www.chess.com"]

[Event "Titled Tuesday Blitz March 28 Early 2023"]
[White "Vadim_Galchenko"]
[Black "Martic, Ivan"]
[BlackFideId "929301"]
[WhiteElo "2359"]
[BlackElo "2360"]
[Result "0-1"]
[Round "10"]
[TimeControl "180+2"]
[Date "2023.03.28"]
[WhiteClock "0:00:28"]
[BlackClock "0:00:04"]

1. e4 {[%clk 0:03:00]}  c5 {[%clk 0:02:59]} 2. a3 {[%clk 0:03:00]}  g6 {[%clk 0:02:56]} 3. b4 {[%clk 0:03:00]}  Bg7 {[%clk 0:02:57]} 4. Nc3 {[%clk 0:03:00]}  d6 {[%clk 0:02:55]} 5. g3 {[%clk 0:03:00]}  Nc6 {[%clk 0:02:50]} 6. Rb1 {[%clk 0:02:56]}  Nf6 {[%clk 0:02:47]} 7. Bg2 {[%clk 0:02:55]}  O-O {[%clk 0:02:46]} 8. Nge2 {[%clk 0:02:55]}  e5 {[%clk 0:02:44]} 9. O-O {[%clk 0:02:55]}  Nd4 {[%clk 0:02:36]} 10. d3 {[%clk 0:02:45]}  Rb8 {[%clk 0:02:25]} 11. Nd5 {[%clk 0:02:35]}  Nxd5 {[%clk 0:02:24]} 12. exd5 {[%clk 0:02:36]}  Bg4 {[%clk 0:02:12]} 13. f3 {[%clk 0:02:36]}  Bd7 {[%clk 0:02:11]} 14. c3 {[%clk 0:02:32]}  Ba4 {[%clk 0:01:53]} 15. Qd2 {[%clk 0:02:18]}  Nb3 {[%clk 0:01:40]} 16. Qc2 {[%clk 0:01:53]}  Nxc1 {[%clk 0:01:31]} 17. Qxc1 {[%clk 0:01:54]}  Bd7 {[%clk 0:01:30]} 18. c4 {[%clk 0:01:52]}  b5 {[%clk 0:01:22]} 19. bxc5 {[%clk 0:01:51]}  dxc5 {[%clk 0:01:23]} 20. Nc3 {[%clk 0:01:51]}  b4 {[%clk 0:01:13]} 21. Ne4 {[%clk 0:01:49]}  bxa3 {[%clk 0:00:57]} 22. Qxa3 {[%clk 0:01:46]}  f5 {[%clk 0:00:51]} 23. Nxc5 {[%clk 0:01:42]}  Qe7 {[%clk 0:00:45]} 24. Qxa7 {[%clk 0:01:23]}  Rxb1 {[%clk 0:00:36]} 25. Rxb1 {[%clk 0:01:21]}  e4 {[%clk 0:00:19]} 26. Qxd7 {[%clk 0:01:20]}  Qxc5+ {[%clk 0:00:18]} 27. Kh1 {[%clk 0:01:19]}  exd3 {[%clk 0:00:16]} 28. Qe6+ {[%clk 0:01:07]}  Kh8 {[%clk 0:00:15]} 29. d6 {[%clk 0:01:05]}  d2 {[%clk 0:00:12]} 30. Rd1 {[%clk 0:01:01]}  Qf2 {[%clk 0:00:07]} 31. d7 {[%clk 0:00:56]}  Bc3 {[%clk 0:00:07]} 32. c5 {[%clk 0:00:38]}  Qe1+ {[%clk 0:00:06]} 33. Rxe1 {[%clk 0:00:37]}  dxe1=Q+ {[%clk 0:00:07]} 34. Qxe1 {[%clk 0:00:37]}  Bxe1 {[%clk 0:00:08]} 35. c6 {[%clk 0:00:37]}  Ba5 {[%clk 0:00:08]} 36. Bf1 {[%clk 0:00:35]}  Bc7 {[%clk 0:00:07]} 37. Ba6 {[%clk 0:00:32]}  Kg7 {[%clk 0:00:06]} 38. g4 {[%clk 0:00:27]}  Kf6 {[%clk 0:00:06]} 39. Kg2 {[%clk 0:00:28]}  fxg4 {[%clk 0:00:06]} 40. fxg4 {[%clk 0:00:28]}  Ke7 {[%clk 0:00:06]} 41. h4 {[%clk 0:00:27]}  Kd6 {[%clk 0:00:05]} 42. Bb7 {[%clk 0:00:28]}  Rf4 {[%clk 0:00:04]} 0-1


[Site "https://www.chess.com"]

[Event "Titled Tuesday Blitz March 28 Early 2023"]
[White "Yaniuk, Volodymyr"]
[Black "Mika, Tomasz"]
[WhiteFideId "14133083"]
[BlackFideId "1132970"]
[WhiteElo "2141"]
[BlackElo "2179"]
[Result "1-0"]
[Round "10"]
[TimeControl "180+2"]
[Date "2023.03.28"]
[WhiteClock "0:00:16"]
[BlackClock "0:00:01"]

1. d4 {[%clk 0:03:00]}  d6 {[%clk 0:02:59]} 2. c4 {[%clk 0:03:00]}  Nf6 {[%clk 0:02:59]} 3. Nc3 {[%clk 0:02:59]}  g6 {[%clk 0:02:59]} 4. e4 {[%clk 0:02:59]}  c5 {[%clk 0:02:59]} 5. Nf3 {[%clk 0:02:59]}  cxd4 {[%clk 0:02:59]} 6. Nxd4 {[%clk 0:02:59]}  Bg7 {[%clk 0:02:59]} 7. Be2 {[%clk 0:02:59]}  O-O {[%clk 0:02:59]} 8. O-O {[%clk 0:03:00]}  Nc6 {[%clk 0:02:59]} 9. Nc2 {[%clk 0:02:57]}  Bd7 {[%clk 0:02:52]} 10. b3 {[%clk 0:02:57]}  a6 {[%clk 0:02:51]} 11. Rb1 {[%clk 0:02:49]}  Rb8 {[%clk 0:02:27]} 12. Bg5 {[%clk 0:02:44]}  h6 {[%clk 0:02:25]} 13. Bh4 {[%clk 0:02:42]}  Ne5 {[%clk 0:02:20]} 14. h3 {[%clk 0:02:31]}  g5 {[%clk 0:02:12]} 15. Bg3 {[%clk 0:02:31]}  b5 {[%clk 0:02:09]} 16. c5 {[%clk 0:02:26]}  Qc7 {[%clk 0:01:54]} 17. Bxe5 {[%clk 0:02:24]}  dxe5 {[%clk 0:01:54]} 18. b4 {[%clk 0:02:24]}  Bc6 {[%clk 0:01:46]} 19. f3 {[%clk 0:02:14]}  Rfd8 {[%clk 0:01:42]} 20. Qc1 {[%clk 0:02:14]}  Nh5 {[%clk 0:01:39]} 21. Rd1 {[%clk 0:02:11]}  e6 {[%clk 0:01:38]} 22. Qe3 {[%clk 0:02:05]}  Nf4 {[%clk 0:01:33]} 23. Bf1 {[%clk 0:02:04]}  Rd7 {[%clk 0:01:10]} 24. Rxd7 {[%clk 0:02:04]}  Qxd7 {[%clk 0:01:10]} 25. Rd1 {[%clk 0:02:05]}  Qc7 {[%clk 0:01:09]} 26. Na1 {[%clk 0:01:54]}  Rd8 {[%clk 0:01:05]} 27. Rd2 {[%clk 0:01:49]}  Rd4 {[%clk 0:01:02]} 28. a3 {[%clk 0:01:47]}  Qd8 {[%clk 0:01:00]} 29. Nb3 {[%clk 0:01:47]}  Rxd2 {[%clk 0:00:54]} 30. Qxd2 {[%clk 0:01:47]}  Qc7 {[%clk 0:00:46]} 31. Na5 {[%clk 0:01:40]}  Bf8 {[%clk 0:00:44]} 32. Nxc6 {[%clk 0:01:24]}  Qxc6 {[%clk 0:00:45]} 33. Na2 {[%clk 0:01:23]}  Kg7 {[%clk 0:00:41]} 34. Nc1 {[%clk 0:01:23]}  Be7 {[%clk 0:00:31]} 35. Nb3 {[%clk 0:01:22]}  Qc7 {[%clk 0:00:29]} 36. g3 {[%clk 0:01:17]}  Ng6 {[%clk 0:00:28]} 37. Kg2 {[%clk 0:01:17]}  h5 {[%clk 0:00:28]} 38. Kf2 {[%clk 0:01:01]}  h4 {[%clk 0:00:28]} 39. Na1 {[%clk 0:00:49]}  hxg3+ {[%clk 0:00:26]} 40. Kxg3 {[%clk 0:00:49]}  Nf4 {[%clk 0:00:24]} 41. Nc2 {[%clk 0:00:48]}  Kg6 {[%clk 0:00:17]} 42. Ne3 {[%clk 0:00:48]}  Qc8 {[%clk 0:00:13]} 43. Ng4 {[%clk 0:00:46]}  f6 {[%clk 0:00:13]} 44. Kf2 {[%clk 0:00:36]}  Qc7 {[%clk 0:00:11]} 45. Ne3 {[%clk 0:00:30]}  Qc8 {[%clk 0:00:10]} 46. Ng4 {[%clk 0:00:30]}  Qc7 {[%clk 0:00:10]} 47. Kg3 {[%clk 0:00:26]}  f5 {[%clk 0:00:08]} 48. Nf2 {[%clk 0:00:24]}  Qc8 {[%clk 0:00:07]} 49. Bd3 {[%clk 0:00:23]}  Qh8 {[%clk 0:00:06]} 50. exf5+ {[%clk 0:00:23]}  exf5 {[%clk 0:00:06]} 51. Qc2 {[%clk 0:00:22]}  Qh4+ {[%clk 0:00:06]} 52. Kh2 {[%clk 0:00:21]}  Kg7 {[%clk 0:00:01]} 53. Bxf5 {[%clk 0:00:20]}  e4 {[%clk 0:00:01]} 54. Nxe4 {[%clk 0:00:17]}  g4 {[%clk 0:00:01]} 55. Bxg4 {[%clk 0:00:16]} 1-0


[Site "https://www.chess.com"]

[Event "Titled Tuesday Blitz March 28 Early 2023"]
[White "Kosteniuk, Alexandra"]
[Black "Zaragatski, Ilja"]
[WhiteFideId "4128125"]
[BlackFideId "4655192"]
[WhiteElo "2453"]
[BlackElo "2460"]
[Result "0-1"]
[Round "10"]
[TimeControl "180+2"]
[Date "2023.03.28"]
[WhiteClock "0:00:02"]
[BlackClock "0:00:04"]

1. e4 {[%clk 0:03:00]}  e6 {[%clk 0:02:58]} 2. d4 {[%clk 0:03:00]}  d5 {[%clk 0:02:59]} 3. Nc3 {[%clk 0:03:01]}  Nc6 {[%clk 0:02:59]} 4. exd5 {[%clk 0:03:00]}  exd5 {[%clk 0:02:59]} 5. Nf3 {[%clk 0:02:59]}  Bb4 {[%clk 0:02:59]} 6. Bb5 {[%clk 0:02:56]}  Ne7 {[%clk 0:02:55]} 7. O-O {[%clk 0:02:54]}  O-O {[%clk 0:02:54]} 8. h3 {[%clk 0:02:54]}  a6 {[%clk 0:02:54]} 9. Bd3 {[%clk 0:02:54]}  Bf5 {[%clk 0:02:47]} 10. Bg5 {[%clk 0:02:51]}  Qd7 {[%clk 0:02:42]} 11. Qd2 {[%clk 0:02:41]}  Bxd3 {[%clk 0:02:39]} 12. Qxd3 {[%clk 0:02:39]}  f6 {[%clk 0:02:22]} 13. Bf4 {[%clk 0:02:37]}  Nf5 {[%clk 0:02:06]} 14. a3 {[%clk 0:02:28]}  Bxc3 {[%clk 0:02:04]} 15. Qxc3 {[%clk 0:02:28]}  Rae8 {[%clk 0:02:02]} 16. Rae1 {[%clk 0:02:26]}  Re4 {[%clk 0:01:59]} 17. Be3 {[%clk 0:02:15]}  Rfe8 {[%clk 0:01:57]} 18. Nd2 {[%clk 0:02:15]}  R4e6 {[%clk 0:01:55]} 19. Nb3 {[%clk 0:02:11]}  b6 {[%clk 0:01:53]} 20. Qd3 {[%clk 0:02:11]}  Nxe3 {[%clk 0:01:51]} 21. fxe3 {[%clk 0:02:02]}  a5 {[%clk 0:01:39]} 22. Rf3 {[%clk 0:01:59]}  Nd8 {[%clk 0:01:38]} 23. c4 {[%clk 0:01:56]}  Nf7 {[%clk 0:01:35]} 24. cxd5 {[%clk 0:01:44]}  Qxd5 {[%clk 0:01:35]} 25. Rf5 {[%clk 0:01:44]}  Qd7 {[%clk 0:01:28]} 26. e4 {[%clk 0:01:27]}  Nd6 {[%clk 0:01:27]} 27. Rf4 {[%clk 0:01:27]}  g5 {[%clk 0:01:05]} 28. Rg4 {[%clk 0:01:22]}  h5 {[%clk 0:01:02]} 29. Rg3 {[%clk 0:01:22]}  Nxe4 {[%clk 0:01:01]} 30. Rge3 {[%clk 0:01:20]}  Qd5 {[%clk 0:00:51]} 31. Nd2 {[%clk 0:01:08]}  f5 {[%clk 0:00:51]} 32. Nf3 {[%clk 0:00:57]}  f4 {[%clk 0:00:46]} 33. R3e2 {[%clk 0:00:57]}  Ng3 {[%clk 0:00:46]} 34. Rxe6 {[%clk 0:00:51]}  Rxe6 {[%clk 0:00:47]} 35. Re5 {[%clk 0:00:49]}  Rxe5 {[%clk 0:00:40]} 36. Qg6+ {[%clk 0:00:44]}  Kf8 {[%clk 0:00:39]} 37. Qf6+ {[%clk 0:00:36]}  Ke8 {[%clk 0:00:32]} 38. Qh8+ {[%clk 0:00:36]}  Ke7 {[%clk 0:00:28]} 39. Qg7+ {[%clk 0:00:36]}  Kd8 {[%clk 0:00:24]} 40. Qxe5 {[%clk 0:00:23]}  Qxe5 {[%clk 0:00:24]} 41. dxe5 {[%clk 0:00:23]}  g4 {[%clk 0:00:20]} 42. hxg4 {[%clk 0:00:23]}  hxg4 {[%clk 0:00:21]} 43. Nd4 {[%clk 0:00:21]}  Ke7 {[%clk 0:00:16]} 44. Kf2 {[%clk 0:00:18]}  Ne4+ {[%clk 0:00:15]} 45. Ke2 {[%clk 0:00:18]}  c5 {[%clk 0:00:13]} 46. Nf5+ {[%clk 0:00:12]}  Ke6 {[%clk 0:00:14]} 47. Nh6 {[%clk 0:00:12]}  Kxe5 {[%clk 0:00:11]} 48. Nxg4+ {[%clk 0:00:12]}  Kd4 {[%clk 0:00:12]} 49. Kf3 {[%clk 0:00:09]}  c4 {[%clk 0:00:10]} 50. Kxf4 {[%clk 0:00:07]}  b5 {[%clk 0:00:11]} 51. Ne3 {[%clk 0:00:07]}  Nf6 {[%clk 0:00:06]} 52. Nf5+ {[%clk 0:00:04]}  Kd3 {[%clk 0:00:05]} 53. Nd6 {[%clk 0:00:03]}  b4 {[%clk 0:00:04]} 54. axb4 {[%clk 0:00:03]}  axb4 {[%clk 0:00:05]} 55. Ke5 {[%clk 0:00:03]}  Ng4+ {[%clk 0:00:04]} 56. Kf4 {[%clk 0:00:02]}  Nf6 {[%clk 0:00:04]} 0-1


[Site "https://www.chess.com"]

[Event "Titled Tuesday Blitz March 28 Early 2023"]
[White "Karolczuk, Iwo"]
[Black "Vovk, Orest"]
[WhiteFideId "21816972"]
[BlackFideId "14113490"]
[WhiteElo "2348"]
[BlackElo "2215"]
[Result "1-0"]
[Round "10"]
[TimeControl "180+2"]
[Date "2023.03.28"]
[WhiteClock "0:01:05"]
[BlackClock "0:01:09"]

1. a4 {[%clk 0:02:54]}  g5 {[%clk 0:02:49]} 2. b4 {[%clk 0:02:52]}  Bg7 {[%clk 0:02:48]} 3. Ra3 {[%clk 0:02:51]}  h5 {[%clk 0:02:47]} 4. h4 {[%clk 0:02:50]}  g4 {[%clk 0:02:45]} 5. a5 {[%clk 0:02:48]}  d5 {[%clk 0:02:42]} 6. g3 {[%clk 0:02:47]}  e5 {[%clk 0:02:42]} 7. Bg2 {[%clk 0:02:47]}  f5 {[%clk 0:02:42]} 8. e3 {[%clk 0:02:47]}  Nf6 {[%clk 0:02:41]} 9. Ne2 {[%clk 0:02:47]}  O-O {[%clk 0:02:40]} 10. d4 {[%clk 0:02:47]}  Qe7 {[%clk 0:02:40]} 11. dxe5 {[%clk 0:02:45]}  Qxe5 {[%clk 0:02:34]} 12. Rd3 {[%clk 0:02:44]}  c6 {[%clk 0:02:33]} 13. Nbc3 {[%clk 0:02:44]}  Ne4 {[%clk 0:02:33]} 14. Bb2 {[%clk 0:02:43]}  Qe7 {[%clk 0:02:31]} 15. Nf4 {[%clk 0:02:39]}  Qxb4 {[%clk 0:02:22]} 16. Qa1 {[%clk 0:02:38]}  Nc5 {[%clk 0:02:10]} 17. O-O {[%clk 0:01:55]}  Nxd3 {[%clk 0:01:57]} 18. cxd3 {[%clk 0:01:56]}  Na6 {[%clk 0:01:49]} 19. Nxh5 {[%clk 0:01:54]}  Bh8 {[%clk 0:01:48]} 20. Rb1 {[%clk 0:01:29]}  Nc5 {[%clk 0:01:37]} 21. Nxd5 {[%clk 0:01:23]}  Bxb2 {[%clk 0:01:20]} 22. Rxb2 {[%clk 0:01:08]}  Qa4 {[%clk 0:01:09]} 23. Ra2 {[%clk 0:01:05]} 1-0


[Site "https://www.chess.com"]

[Event "Titled Tuesday Blitz March 28 Early 2023"]
[White "Golubev, Mikhail"]
[Black "Rozman, Levy"]
[WhiteFideId "14100983"]
[BlackFideId "2039877"]
[WhiteElo "2374"]
[BlackElo "2376"]
[Result "0-1"]
[Round "10"]
[TimeControl "180+2"]
[Date "2023.03.28"]
[WhiteClock "0:00:11"]
[BlackClock "0:01:16"]

1. e4 {[%clk 0:03:00]}  c6 {[%clk 0:02:59]} 2. d4 {[%clk 0:02:59]}  d5 {[%clk 0:03:00]} 3. e5 {[%clk 0:02:56]}  c5 {[%clk 0:03:00]} 4. dxc5 {[%clk 0:02:53]}  e6 {[%clk 0:03:00]} 5. Nf3 {[%clk 0:02:52]}  Nd7 {[%clk 0:03:00]} 6. c4 {[%clk 0:02:44]}  Bxc5 {[%clk 0:02:56]} 7. cxd5 {[%clk 0:02:41]}  Qb6 {[%clk 0:02:57]} 8. Qc2 {[%clk 0:02:22]}  exd5 {[%clk 0:02:53]} 9. Bd3 {[%clk 0:02:17]}  Ne7 {[%clk 0:02:52]} 10. O-O {[%clk 0:02:17]}  h6 {[%clk 0:02:42]} 11. Nc3 {[%clk 0:02:10]}  O-O {[%clk 0:02:41]} 12. Na4 {[%clk 0:01:45]}  Qc6 {[%clk 0:02:40]} 13. Nxc5 {[%clk 0:01:44]}  Nxc5 {[%clk 0:02:41]} 14. Nd4 {[%clk 0:01:41]}  Qb6 {[%clk 0:02:29]} 15. Bh7+ {[%clk 0:01:32]}  Kh8 {[%clk 0:02:29]} 16. Be3 {[%clk 0:01:32]}  f5 {[%clk 0:02:07]} 17. exf6 {[%clk 0:01:22]}  Qxf6 {[%clk 0:02:07]} 18. Qxc5 {[%clk 0:01:02]}  Kxh7 {[%clk 0:01:58]} 19. Rfe1 {[%clk 0:00:34]}  b6 {[%clk 0:01:47]} 20. Qc7 {[%clk 0:00:33]}  Ng6 {[%clk 0:01:43]} 21. Rad1 {[%clk 0:00:28]}  Rf7 {[%clk 0:01:42]} 22. Qg3 {[%clk 0:00:27]}  Bd7 {[%clk 0:01:38]} 23. Nf3 {[%clk 0:00:24]}  Re8 {[%clk 0:01:25]} 24. Bd4 {[%clk 0:00:23]}  Qf5 {[%clk 0:01:21]} 25. Rxe8 {[%clk 0:00:21]}  Bxe8 {[%clk 0:01:22]} 26. Re1 {[%clk 0:00:18]}  Bb5 {[%clk 0:01:20]} 27. Qh4 {[%clk 0:00:14]}  Nxh4 {[%clk 0:01:20]} 28. Nxh4 {[%clk 0:00:11]}  Qg4 {[%clk 0:01:16]} 0-1


[Site "https://www.chess.com"]

[Event "Titled Tuesday Blitz March 28 Early 2023"]
[White "Lorenzo De La Riva, Lazaro"]
[Black "Kim, Sergey"]
[WhiteFideId "2268809"]
[BlackFideId "13700570"]
[WhiteElo "2294"]
[BlackElo "2613"]
[Result "1-0"]
[Round "10"]
[TimeControl "180+2"]
[Date "2023.03.28"]
[WhiteClock "0:00:12"]
[BlackClock "0:00:11"]

1. d4 {[%clk 0:02:59]}  Nf6 {[%clk 0:02:59]} 2. Bf4 {[%clk 0:03:00]}  g6 {[%clk 0:02:59]} 3. Nc3 {[%clk 0:02:56]}  d6 {[%clk 0:02:58]} 4. e4 {[%clk 0:02:56]}  c6 {[%clk 0:02:57]} 5. Qd2 {[%clk 0:02:55]}  b5 {[%clk 0:02:51]} 6. Bd3 {[%clk 0:02:53]}  b4 {[%clk 0:02:47]} 7. Nce2 {[%clk 0:02:48]}  a5 {[%clk 0:02:48]} 8. Nf3 {[%clk 0:02:32]}  Qc7 {[%clk 0:02:41]} 9. e5 {[%clk 0:02:28]}  Nd5 {[%clk 0:02:40]} 10. exd6 {[%clk 0:02:28]}  exd6 {[%clk 0:02:38]} 11. Bg3 {[%clk 0:02:28]}  Bg7 {[%clk 0:02:35]} 12. O-O {[%clk 0:02:26]}  O-O {[%clk 0:02:34]} 13. c4 {[%clk 0:02:27]}  bxc3 {[%clk 0:02:20]} 14. bxc3 {[%clk 0:02:25]}  Bg4 {[%clk 0:02:07]} 15. Ng5 {[%clk 0:02:16]}  Na6 {[%clk 0:01:38]} 16. Ne4 {[%clk 0:02:09]}  Rfd8 {[%clk 0:01:34]} 17. c4 {[%clk 0:02:04]}  Ndb4 {[%clk 0:01:32]} 18. c5 {[%clk 0:01:50]}  Nxd3 {[%clk 0:01:24]} 19. Qxd3 {[%clk 0:01:47]}  Nb4 {[%clk 0:01:19]} 20. Qd2 {[%clk 0:01:43]}  Bxe2 {[%clk 0:01:16]} 21. Bxd6 {[%clk 0:01:30]}  Qd7 {[%clk 0:01:08]} 22. Qxe2 {[%clk 0:01:30]}  Bxd4 {[%clk 0:01:02]} 23. Rad1 {[%clk 0:01:29]}  Bg7 {[%clk 0:01:01]} 24. Be5 {[%clk 0:01:13]}  Qe6 {[%clk 0:00:58]} 25. Bxg7 {[%clk 0:01:13]}  Kxg7 {[%clk 0:00:58]} 26. Qb2+ {[%clk 0:01:13]}  f6 {[%clk 0:00:54]} 27. Nd6 {[%clk 0:01:09]}  Rd7 {[%clk 0:00:35]} 28. Rfe1 {[%clk 0:01:07]}  Qg4 {[%clk 0:00:33]} 29. h3 {[%clk 0:01:04]}  Qg5 {[%clk 0:00:30]} 30. Ne4 {[%clk 0:00:46]}  Rxd1 {[%clk 0:00:29]} 31. Rxd1 {[%clk 0:00:43]}  Qe5 {[%clk 0:00:28]} 32. Rd7+ {[%clk 0:00:41]}  Kh6 {[%clk 0:00:26]} 33. Qxe5 {[%clk 0:00:37]}  fxe5 {[%clk 0:00:26]} 34. h4 {[%clk 0:00:34]}  Kh5 {[%clk 0:00:16]} 35. Rxh7+ {[%clk 0:00:23]}  Kg4 {[%clk 0:00:16]} 36. Rf7 {[%clk 0:00:12]}  Kxh4 {[%clk 0:00:14]} 37. Kh2 {[%clk 0:00:11]}  Kg4 {[%clk 0:00:11]} 38. f3+ {[%clk 0:00:11]}  Kh5 {[%clk 0:00:11]} 39. Rh7# {[%clk 0:00:12]} 1-0


[Site "https://www.chess.com"]